fUSD/lending_fUSD_20260108
["ID","MTS","AMOUNT","RATE_DAILY","PERIOD"]
[400897024,1767857441749,-151.0,0.00014914,2]
[400897026,1767857441758,-173.84870699,0.00014963,2]
[400897028,1767857441767,-1754.27554981,0.00014964,2]
[400897030,1767857441777,-150.0,0.00015068,2]
[400897032,1767857441786,-200.589792,0.00015097,2]
[400897034,1767857441795,-283093.76837741,0.000151,2]
[400897036,1767857441804,-150.0,0.00015123,2]
[400897038,1767857441813,-1676.56,0.00015124,2]
[400897040,1767857441823,-876.29583334,0.00015167,2]
[400897042,1767857441832,-222.31501888,0.00015178,2]
[400897044,1767857441842,-322.6107,0.00015217,2]
[400897046,1767857441851,-574.12855637,0.00015217,2]
[400897048,1767857441860,-1500.0,0.00015217,2]
[400897050,1767857441869,-500.0,0.00015217,2]
[400897052,1767857441878,-1500.0,0.00015217,2]
[400897054,1767857441888,-500.0,0.00015217,2]
[400897056,1767857441897,-1500.0,0.00015217,2]
[400897058,1767857441907,-500.0,0.00015217,2]
[400897060,1767857441915,-1500.0,0.00015217,2]
[400897062,1767857441925,-500.0,0.00015217,2]
[400897064,1767857441934,-1500.0,0.00015217,2]
[400897066,1767857441944,-500.0,0.00015217,2]
[400897068,1767857441954,-1500.0,0.00015217,2]
[400897070,1767857441963,-500.0,0.00015217,2]
[400897072,1767857441972,-1500.0,0.00015217,2]
[400897074,1767857441981,-620.0,0.00015217,2]
[400897076,1767857441990,-500.0,0.00015217,2]
[400897078,1767857441999,-1500.0,0.00015217,2]
[400897080,1767857442009,-500.0,0.00015217,2]
[400897082,1767857442018,-500.0,0.00015217,2]
[400897084,1767857442027,-500.0,0.00015217,2]
[400897086,1767857442037,-1500.0,0.00015217,2]
[400897088,1767857442046,-500.0,0.00015217,2]
[400897090,1767857442055,-500.0,0.00015217,2]
[400897092,1767857442065,-500.0,0.00015217,2]
[400897094,1767857442074,-209.40437684,0.00015217,2]
[400897096,1767857442083,-1500.0,0.00015217,2]
[400897098,1767857442091,-500.0,0.00015217,2]
[400897100,1767857442100,-500.0,0.00015217,2]
[400897102,1767857442110,-508.17182735,0.00015217,2]
[400897104,1767857442120,-500.0,0.00015217,2]
[400897106,1767857442141,-500.0,0.00015217,2]
[400897108,1767857442153,-500.0,0.00015217,2]
[400897109,1767857442163,-500.0,0.00015217,2]
[400897111,1767857442172,-500.0,0.00015217,2]
[400897114,1767857442182,-500.0,0.00015217,2]
[400897116,1767857442192,-498.61515312,0.00015217,2]
[400897118,1767857442202,-500.0,0.00015217,2]
[400897119,1767857442211,-500.0,0.00015217,2]
[400897121,1767857442220,-169.1378307,0.00015217,2]
[400897123,1767857442229,-500.0,0.00015217,2]
[400897125,1767857442238,-151.0,0.00015217,2]
[400897127,1767857442248,-500.0,0.00015217,2]
[400897130,1767857442259,-500.0,0.00015217,2]
[400897132,1767857442268,-270.73180541,0.00015217,2]
[400897134,1767857442277,-500.0,0.00015217,2]
[400897136,1767857442287,-500.0,0.00015217,2]
[400897137,1767857442296,-500.0,0.00015217,2]
[400897140,1767857442306,-500.0,0.00015217,2]
[400897142,1767857442316,-1043.35394918,0.00015217,2]
[400897144,1767857442326,-500.0,0.00015217,2]
[400897146,1767857442336,-500.0,0.00015217,2]
[400897148,1767857442345,-151.66241854,0.00015217,2]
[400897150,1767857442355,-2000.0,0.00015217,2]
[400897152,1767857442364,-500.0,0.00015217,2]
[400897154,1767857442374,-2000.0,0.00015217,2]
[400897156,1767857442384,-500.0,0.00015217,2]
[400897158,1767857442393,-2000.0,0.00015217,2]
[400897160,1767857442402,-151.0,0.00015217,2]
[400897162,1767857442412,-578.20924308,0.00015217,2]
[400897164,1767857442421,-2000.0,0.00015217,2]
[400897166,1767857442430,-2000.0,0.00015217,2]
[400897168,1767857442439,-2000.0,0.00015217,2]
[400897170,1767857442448,-2000.0,0.00015217,2]
[400897172,1767857442458,-2000.0,0.00015217,2]
[400897174,1767857442467,-2000.0,0.00015217,2]
[400897176,1767857442476,-2000.0,0.00015217,2]
[400897178,1767857442485,-2000.0,0.00015217,2]
[400897180,1767857442495,-500.0,0.00015217,2]
[400897182,1767857442504,-500.0,0.00015217,2]
[400897184,1767857442514,-500.0,0.00015217,2]
[400897186,1767857442523,-500.0,0.00015217,2]
[400897188,1767857442533,-500.0,0.00015217,2]
[400897190,1767857442542,-500.0,0.00015217,2]
[400897193,1767857442552,-500.0,0.00015217,2]
[400897195,1767857442562,-500.0,0.00015217,2]
[400897198,1767857442572,-500.0,0.00015217,2]
[400897200,1767857442581,-622.14655061,0.00015217,2]
[400897203,1767857442591,-500.0,0.00015217,2]
[400897205,1767857442600,-500.0,0.00015217,2]
[400897207,1767857442611,-500.0,0.00015217,2]
[400897210,1767857442620,-600.0,0.00015262,2]
[400897212,1767857442630,-240.4,0.00015262,2]
[400897214,1767857442639,-1517.64,0.000153,2]
[400897216,1767857442648,-1000.0,0.0001531,2]
[400897218,1767857442658,-1000.0,0.0001531,2]
[400897221,1767857442667,-503.33948311,0.0001531,2]
[400897223,1767857442677,-212.65120656,0.0001531,2]
[400897225,1767857442687,-1000.0,0.0001531,2]
[400897228,1767857442697,-412.45872532,0.0001531,2]
[400897230,1767857442706,-1000.0,0.0001531,2]
[400897232,1767857442715,-1000.0,0.0001531,2]
[400897234,1767857442725,-1000.0,0.0001531,2]
[400897237,1767857442734,-1000.0,0.0001531,2]
[400897240,1767857442744,-1056.63084022,0.0001531,2]
[400897243,1767857442753,-1000.0,0.0001531,2]
[400897245,1767857442764,-312.00908556,0.0001531,2]
[400897247,1767857442773,-1000.0,0.0001531,2]
[400897249,1767857442783,-1000.0,0.0001531,2]
[400897251,1767857442792,-1000.0,0.0001531,2]
[400897253,1767857442801,-1000.0,0.0001531,2]
[400897255,1767857442810,-1000.0,0.0001531,2]
[400897257,1767857442820,-1000.0,0.0001531,2]
[400897259,1767857442829,-1000.0,0.0001531,2]
[400897261,1767857442838,-1000.0,0.0001531,2]
[400897263,1767857442848,-913.69875704,0.0001531,2]
[400897265,1767857442857,-1000.0,0.0001531,2]
[400897267,1767857442868,-1000.0,0.0001531,2]
[400897269,1767857442877,-1000.0,0.0001531,2]
[400897270,1767857442887,-1000.0,0.0001531,2]
[400897272,1767857442896,-1000.0,0.0001531,2]
[400897274,1767857442906,-17120.08999858,0.00015362,2]
[400897276,1767857442915,-15364.73579307,0.0001538,2]
[400897278,1767857442924,-1676.56,0.00015398,2]
[400897280,1767857442934,-755.93468828,0.00015557,2]
[400897282,1767857442944,-500.0,0.00015562,2]
[400897284,1767857442953,-1676.56,0.00015672,2]
[400897286,1767857442963,-360.97,0.0001572,2]
[400897288,1767857442973,-676.37978942,0.00015765,2]
[400897290,1767857442982,-595.37131296,0.00015765,2]
[400897292,1767857442991,-217.15233878,0.00015765,2]
[400897294,1767857443000,-151.0,0.00015765,2]
[400897296,1767857443009,-157.22325972,0.00015765,2]
[400897297,1767857443018,-736.0,0.00015786,2]
[400897299,1767857443027,-2045.62935019,0.00015807,2]
[400897301,1767857443036,-1500.0,0.00015858,2]
[400897303,1767857443045,-509.92734084,0.00015858,2]
[400897305,1767857443055,-322.81176918,0.00015858,2]
[400897307,1767857443064,-1500.0,0.00015858,2]
[400897308,1767857443073,-1500.0,0.00015858,2]
[400897309,1767857443082,-485.97149483,0.00015858,2]
[400897310,1767857443091,-1500.0,0.00015858,2]
[400897311,1767857443100,-1500.0,0.00015858,2]
[400897312,1767857443109,-1500.0,0.00015858,2]
[400897313,1767857443119,-1030.62564826,0.00015858,2]
[400897314,1767857443128,-1453.03832283,0.00015858,2]
[400897315,1767857443140,-1500.0,0.00015858,2]
[400897316,1767857443149,-1500.0,0.00015858,2]
[400897317,1767857443158,-1500.0,0.00015858,2]
[400897318,1767857443167,-1500.0,0.00015858,2]
[400897319,1767857443177,-1500.0,0.00015858,2]
[400897320,1767857443186,-1011.09296657,0.00015858,2]
[400897321,1767857443195,-658.23019616,0.00015858,2]
[400897322,1767857443206,-1629.4325829,0.00015858,2]
[400897323,1767857443214,-1500.0,0.00015858,2]
[400897324,1767857443224,-501.84542925,0.00015858,2]
[400897325,1767857443233,-160.59693299,0.000159,2]
[400897327,1767857443243,-1000.84299629,0.000159,2]
[400897329,1767857443254,-1000.84299626,0.000159,2]
[400897331,1767857443264,-1000.84299626,0.000159,2]
[400897333,1767857443273,-1000.84299626,0.000159,2]
[400897335,1767857443283,-1000.84299626,0.000159,2]
[400897337,1767857443292,-1000.84299626,0.000159,2]
[400897339,1767857443302,-1000.0,0.00015918,2]
[400897341,1767857443312,-1676.56,0.00015946,2]
[400897343,1767857443323,-17120.08999858,0.00015996,2]
[400897345,1767857443333,-132779.59344903,0.00016,2]
[400897347,1767857443342,-316668.58425919,0.00016,4]
[400897350,1767857443369,-109786.88196866,0.00016,4]
[400897351,1767857443384,-200.0,0.00016,2]
[400897353,1767857443400,-200.0,0.00016,2]
[400897355,1767857443410,-15364.73579307,0.0001601,2]
[400897357,1767857443420,-500.0,0.00016042,2]
[400897360,1767857443431,-876.29583334,0.00016078,2]
[400897361,1767857443440,-9999.99,0.00016116,2]
[400897363,1767857443449,-9999.99,0.00016116,2]
[400897365,1767857443459,-1240.88,0.00016116,2]
[400897367,1767857443469,-250.0,0.00016159,2]
[400897369,1767857443478,-200.0,0.0001616,2]
[400897371,1767857443488,-1594.0,0.00016166,2]
[400897373,1767857443498,-823.0,0.00016166,2]
[400897375,1767857443507,-823.0,0.00016166,2]
[400897377,1767857443516,-150.0,0.000162,2]
[400897379,1767857443526,-5000.00237615,0.000162,5]
[400897381,1767857443536,-1676.56,0.0001622,2]
[400897383,1767857443545,-150.0,0.00016246,2]
[400897385,1767857443555,-600.0,0.00016268,2]
[400897387,1767857443564,-240.4,0.00016268,2]
[400897389,1767857443575,-3292.0,0.00016276,2]
[400897391,1767857443584,-150.0,0.00016292,2]
[400897393,1767857443594,-157.72323008,0.000163,2]
[400897395,1767857443603,-160.59693296,0.000163,2]
[400897397,1767857443613,-617.40005154,0.00016313,2]
[400897399,1767857443624,-225.18697532,0.00016313,2]
[400897401,1767857443637,-151.0,0.00016313,2]
[400897403,1767857443647,-200.0,0.00016322,2]
[400897405,1767857443656,-500.0,0.00016337,2]
[400897408,1767857443676,-737.13729626,0.00016338,2]
[400897410,1767857443687,-10000.0,0.00016338,2]
[400897412,1767857443697,-150.0,0.00016338,2]
[400897414,1767857443707,-200.0,0.0001634,2]
[400897416,1767857443716,-150.0,0.00016385,2]
[400897418,1767857443727,-833.0,0.000164,2]
[400897420,1767857443736,-2000.0,0.00016406,2]
[400897422,1767857443746,-2000.0,0.00016406,2]
[400897424,1767857443757,-2000.0,0.00016406,2]
[400897426,1767857443766,-2000.0,0.00016406,2]
[400897428,1767857443779,-2000.0,0.00016406,2]
[400897430,1767857443788,-2000.0,0.00016406,2]
[400897432,1767857443799,-504.82287623,0.00016406,2]
[400897434,1767857443809,-377.66780599,0.00016406,2]
[400897436,1767857443819,-165.71915277,0.00016406,2]
[400897438,1767857443829,-2000.0,0.00016406,2]
[400897440,1767857443840,-2000.0,0.00016406,2]
[400897442,1767857443850,-2000.0,0.00016406,2]
[400897444,1767857443860,-150.0,0.00016431,2]
[400897477,1767857444190,-500.0,0.00016438,2]
[400897479,1767857444202,-500.0,0.00016438,2]
[400897481,1767857444211,-500.0,0.00016438,2]
[400897483,1767857444221,-500.0,0.00016438,2]
[400897485,1767857444230,-350.00000008,0.00016438,2]
[400897487,1767857444240,-500.0,0.00016438,2]
[400897489,1767857444250,-500.0,0.00016438,2]
[400897491,1767857444259,-500.0,0.00016438,2]
[400897493,1767857444269,-500.0,0.00016438,2]
[400897495,1767857444278,-500.0,0.00016438,2]
[400897497,1767857444288,-500.0,0.00016438,2]
[400897500,1767857444301,-500.0,0.00016438,2]
[400897501,1767857444311,-500.0,0.00016438,2]
[400897503,1767857444320,-500.0,0.00016438,2]
[400897505,1767857444330,-500.0,0.00016438,2]
[400897507,1767857444339,-500.0,0.00016438,2]
[400897509,1767857444351,-500.0,0.00016438,2]
[400897511,1767857444371,-500.0,0.00016438,2]
[400897513,1767857444381,-500.0,0.00016438,2]
[400897515,1767857444390,-500.0,0.00016438,2]
[400897517,1767857444400,-500.0,0.00016438,2]
[400897519,1767857444410,-2455.41694641,0.00016438,2]
[400897521,1767857444420,-2455.41694641,0.00016438,2]
[400897523,1767857444429,-2455.41694641,0.00016438,2]
[400897525,1767857444438,-2455.41694641,0.00016438,2]
[400897527,1767857444448,-2455.41694641,0.00016438,2]
[400897529,1767857444458,-2455.41694641,0.00016438,2]
[400897531,1767857444467,-2455.41694641,0.00016438,2]
[400897533,1767857444476,-2455.41694641,0.00016438,2]
[400897535,1767857444486,-2455.41694641,0.00016438,2]
[400897537,1767857444495,-2455.41694641,0.00016438,2]
[400897539,1767857444504,-2455.41694641,0.00016438,2]
[400897541,1767857444514,-2455.41694641,0.00016438,2]
[400897543,1767857444528,-2455.41694641,0.00016438,2]
[400897546,1767857444538,-2455.41694641,0.00016438,2]
[400897548,1767857444548,-2455.41694641,0.00016438,2]
[400897550,1767857444558,-2455.41694641,0.00016438,2]
[400897552,1767857444568,-2455.41694641,0.00016438,2]
[400897554,1767857444578,-2455.41694641,0.00016438,2]
[400897556,1767857444588,-2455.41694641,0.00016438,2]
[400897558,1767857444598,-2455.41694641,0.00016438,2]
[400897560,1767857444608,-2455.41694641,0.00016438,2]
[400897562,1767857444618,-2455.41694641,0.00016438,2]
[400897564,1767857444628,-2455.41694641,0.00016438,2]
[400897566,1767857444639,-2455.41694641,0.00016438,2]
[400897568,1767857444648,-2455.41694641,0.00016438,2]
[400897570,1767857444658,-2455.41694641,0.00016438,2]
[400897572,1767857444668,-2455.41694641,0.00016438,2]
[400897574,1767857444677,-2455.41694641,0.00016438,2]
[400897576,1767857444687,-2455.41694641,0.00016438,2]
[400897578,1767857444698,-2455.41694641,0.00016438,2]
[400897580,1767857444708,-2455.41694641,0.00016438,2]
[400897582,1767857444717,-2455.41694641,0.00016438,2]
[400897584,1767857444727,-2455.41694641,0.00016438,2]
[400897586,1767857444737,-2455.41694641,0.00016438,2]
[400897588,1767857444747,-2455.41694641,0.00016438,2]
[400897590,1767857444757,-2455.41694641,0.00016438,2]
[400897592,1767857444766,-2455.41694641,0.00016438,2]
[400897594,1767857444776,-2455.41694641,0.00016438,2]
[400897596,1767857444786,-2455.41694641,0.00016438,2]
[400897598,1767857444795,-2455.41694641,0.00016438,2]
[400897600,1767857444805,-2455.41694642,0.00016438,2]
[400897602,1767857444815,-2455.41694642,0.00016438,2]
[400897603,1767857444824,-2455.41694642,0.00016438,2]
[400897605,1767857444834,-2455.41694642,0.00016438,2]
[400897607,1767857444843,-2455.41694642,0.00016438,2]
[400897609,1767857444854,-2455.41694642,0.00016438,2]
[400897611,1767857444864,-2455.41694642,0.00016438,2]
[400897613,1767857444874,-2455.41694642,0.00016438,2]
[400897615,1767857444883,-2455.41694642,0.00016438,2]
[400897617,1767857444893,-2455.41694642,0.00016438,2]
[400897620,1767857444904,-2455.41694642,0.00016438,2]
[400897622,1767857444914,-2455.41694642,0.00016438,2]
[400897624,1767857444923,-2455.41694642,0.00016438,2]
[400897626,1767857444934,-2455.41694642,0.00016438,2]
[400897628,1767857444943,-2455.41694642,0.00016438,2]
[400897629,1767857444953,-2455.41694642,0.00016438,2]
[400897632,1767857444963,-2455.41694642,0.00016438,2]
[400897633,1767857444973,-2455.41694642,0.00016438,2]
[400897635,1767857444982,-2455.41694642,0.00016438,2]
[400897637,1767857444992,-2455.41694642,0.00016438,2]
[400897639,1767857445001,-2455.41694642,0.00016438,2]
[400897641,1767857445011,-2463.60166958,0.00016438,2]
[400897643,1767857445021,-2463.60166958,0.00016438,2]
[400897645,1767857445031,-2463.60166958,0.00016438,2]
[400897647,1767857445040,-2463.60166958,0.00016438,2]
[400897649,1767857445050,-2463.60166958,0.00016438,2]
[400897651,1767857445060,-2463.60166958,0.00016438,2]
[400897653,1767857445069,-2463.60166958,0.00016438,2]
[400897655,1767857445079,-2463.60166958,0.00016438,2]
[400897657,1767857445088,-2463.60166958,0.00016438,2]
[400897659,1767857445097,-2463.60166958,0.00016438,2]
[400897661,1767857445107,-2737.3351884,0.00016438,2]
[400897663,1767857445116,-500.0,0.00016438,2]
[400897665,1767857445126,-800.0,0.00016438,2]
[400897667,1767857445140,-150.0,0.00016477,2]
[400897669,1767857445149,-200.0,0.00016485,2]
[400897671,1767857445159,-500.0,0.00016493,2]
[400897673,1767857445168,-1676.56,0.00016494,2]
[400897675,1767857445178,-1000.0,0.00016515,2]
[400897677,1767857445188,-150.0,0.00016523,2]
[400897679,1767857445198,-500.0,0.00016548,2]
[400897681,1767857445208,-150.0,0.00016569,2]
[400897683,1767857445218,-334.5472959,0.00016586,2]
[400897685,1767857445228,-642.94,0.00016586,2]
[400897687,1767857445239,-684.92300583,0.00016596,2]
[400897689,1767857445248,-2973.55,0.00016597,2]
[400897691,1767857445258,-195.08159117,0.00016602,2]
[400897693,1767857445267,-360.97,0.00016611,2]
[400897695,1767857445277,-150.0,0.00016615,2]
[400897697,1767857445286,-17120.08999858,0.00016631,2]
[400897699,1767857445296,-15364.73579307,0.0001664,2]
[400897701,1767857445308,-200.0,0.0001665,2]
[400897703,1767857445318,-150.0,0.00016662,2]
[400897705,1767857445327,-1000.0,0.00016682,2]
[400897707,1767857445337,-160.59693296,0.000167,2]
[400897709,1767857445346,-150.0,0.00016708,2]
[400897711,1767857445356,-1000.0,0.0001671,2]
[400897713,1767857445366,-165.16,0.00016712,2]
[400897715,1767857445375,-162.0,0.0001672,2]
[400897717,1767857445385,-162.0,0.0001672,2]
[400897719,1767857445395,-162.0,0.0001672,2]
[400897721,1767857445404,-833.0,0.0001672,2]
[400897723,1767857445416,-162.0,0.0001672,2]
[400897725,1767857445425,-162.0,0.0001672,2]
[400897727,1767857445435,-833.0,0.0001672,2]
[400897729,1767857445444,-182.0,0.0001672,2]
[400897731,1767857445453,-304.30680198,0.00016732,2]
[400897733,1767857445463,-150.0,0.00016754,2]
[400897735,1767857445472,-1676.56,0.00016768,2]
[400897737,1767857445482,-150.0,0.000168,2]
[400897739,1767857445492,-1000.0,0.00016801,2]
[400897741,1767857445502,-157.72323008,0.00016843,2]
[400897743,1767857445513,-150.0,0.00016846,2]
[400897745,1767857445523,-640.24385345,0.00016861,2]
[400897747,1767857445532,-263.14162042,0.00016861,2]
[400897749,1767857445541,-175.29912762,0.00016861,2]
[400897751,1767857445551,-180.0,0.00016864,2]
[400897753,1767857445561,-1000.0,0.00016892,2]
[400897755,1767857445570,-150.0,0.00016892,2]
[400897758,1767857445580,-1000.0,0.00016901,2]
[400897760,1767857445590,-150.0,0.00016938,2]
[400897762,1767857445600,-1000.0,0.00016948,2]
[400897763,1767857445609,-2500.0,0.00016954,2]
[400897765,1767857445619,-2500.0,0.00016954,2]
[400897768,1767857445629,-2356.56087805,0.00016954,2]
[400897770,1767857445639,-1505.81602002,0.00016954,2]
[400897772,1767857445649,-2500.0,0.00016954,2]
[400897774,1767857445658,-2181.44262662,0.00016954,2]
[400897776,1767857445668,-2500.0,0.00016954,2]
[400897777,1767857445677,-2500.0,0.00016954,2]
[400897780,1767857445687,-2500.0,0.00016954,2]
[400897782,1767857445697,-150.0,0.00016985,2]
[400897783,1767857445708,-876.29583334,0.00016989,2]
[400897786,1767857445718,-1000.0,0.00016992,2]
[400897788,1767857445729,-1000.0,0.00016999,2]
[400897790,1767857445740,-250.0,0.00017,2]
[400897792,1767857445750,-150.0,0.00017031,2]
[400897794,1767857445759,-162.0,0.0001704,2]
[400897796,1767857445769,-833.0,0.0001704,2]
[400897798,1767857445778,-162.0,0.0001704,2]
[400897800,1767857445788,-162.0,0.0001704,2]
[400897802,1767857445797,-162.0,0.0001704,2]
[400897804,1767857445807,-162.0,0.0001704,2]
[400897806,1767857445817,-162.0,0.0001704,2]
[400897808,1767857445827,-162.0,0.0001704,2]
[400897810,1767857445836,-1676.56,0.00017042,2]
[400897812,1767857445846,-1000.0,0.00017061,2]
[400897814,1767857445857,-150.0,0.00017077,2]
[400897816,1767857445866,-150.0,0.0001708,2]
[400897818,1767857445875,-1000.0,0.00017088,2]
[400897820,1767857445884,-1000.0,0.00017095,2]
[400897822,1767857445894,-20452.74518303,0.000171,2]
[400897824,1767857445903,-160.59693296,0.000171,2]
[400897826,1767857445912,-1000.0,0.00017107,2]
[400897828,1767857445922,-1000.0,0.00017112,2]
[400897830,1767857445931,-737.13729626,0.00017119,2]
[400897832,1767857445940,-5242.82669963,0.00017122,2]
[400897834,1767857445950,-150.0,0.00017123,2]
[400897836,1767857445960,-2276.96201759,0.00017124,2]
[400897838,1767857445970,-166.8762854,0.00017133,2]
[400897840,1767857445979,-1000.0,0.00017146,2]
[400897842,1767857445989,-150.0,0.00017169,2]
[400897844,1767857445998,-150.0,0.00017178,2]
[400897846,1767857446009,-1000.0,0.00017179,2]
[400897848,1767857446020,-885.0,0.00017191,2]
[400897850,1767857446029,-1000.0,0.00017193,2]
[400897852,1767857446039,-1252.0,0.00017193,2]
[400897854,1767857446049,-150.0,0.00017215,2]
[400897856,1767857446058,-300.0,0.00017247,2]
[400897858,1767857446068,-1000.0,0.00017259,2]
[400897860,1767857446078,-150.0,0.00017262,2]
[400897862,1767857446087,-150.0,0.00017262,2]
[400897864,1767857446097,-885.0,0.00017265,2]
[400897866,1767857446107,-17120.08999858,0.00017265,2]
[400897868,1767857446116,-15364.73579307,0.0001727,2]
[400897870,1767857446126,-787.62614361,0.00017274,2]
[400897873,1767857446140,-1000.0,0.00017279,2]
[400897874,1767857446150,-1000.0,0.0001728,2]
[400897875,1767857446159,-1000.0,0.00017283,2]
[400897876,1767857446168,-300.0,0.0001729,2]
[400897877,1767857446178,-5888.0,0.000173,2]
[400897878,1767857446187,-300.0,0.00017302,2]
[400897879,1767857446196,-373.51,0.00017307,2]
[400897880,1767857446206,-150.0,0.00017308,2]
[400897881,1767857446215,-300.0,0.0001731,2]
[400897882,1767857446224,-1676.56,0.00017316,2]
[400897883,1767857446233,-300.0,0.0001733,2]
[400897884,1767857446243,-885.0,0.00017338,2]
[400897885,1767857446252,-300.0,0.0001734,2]
[400897886,1767857446261,-373.51,0.0001734,2]
[400897887,1767857446270,-300.0,0.00017343,2]
[400897888,1767857446280,-150.0,0.00017354,2]
[400897889,1767857446290,-150.0,0.00017358,2]
[400897890,1767857446300,-833.0,0.0001736,2]
[400897892,1767857446309,-833.0,0.0001736,2]
[400897894,1767857446319,-833.0,0.0001736,2]
[400897897,1767857446329,-833.0,0.0001736,2]
[400897899,1767857446338,-833.0,0.0001736,2]
[400897901,1767857446348,-162.0,0.0001736,2]
[400897903,1767857446359,-162.0,0.0001736,2]
[400897905,1767857446370,-833.0,0.0001736,2]
[400897907,1767857446380,-833.0,0.0001736,2]
[400897909,1767857446390,-833.0,0.0001736,2]
[400897911,1767857446400,-1000.0,0.00017362,2]
[400897913,1767857446409,-300.0,0.00017367,2]
[400897915,1767857446420,-150.0,0.00017369,2]
[400897917,1767857446429,-1000.0,0.00017373,2]
[400897919,1767857446439,-373.51,0.00017373,2]
[400897921,1767857446448,-1000.0,0.00017375,2]
[400897923,1767857446459,-157.72323008,0.00017387,2]
[400897925,1767857446469,-469.50438451,0.00017389,2]
[400897927,1767857446478,-300.0,0.0001739,2]
[400897929,1767857446487,-150.0,0.000174,2]
[400897931,1767857446496,-1000.0,0.000174,2]
[400897933,1767857446506,-300.0,0.00017406,2]
[400897935,1767857446515,-150.0,0.00017406,2]
[400897937,1767857446526,-663.93287602,0.00017409,2]
[400897939,1767857446535,-300.0,0.0001741,2]
[400897941,1767857446545,-885.0,0.00017412,2]
[400897943,1767857446556,-1330.0,0.00017423,2]
[400897957,1767857446671,-1405.0,0.00017423,2]
[400897959,1767857446680,-621.371,0.00017423,2]
[400897961,1767857446689,-1000.0,0.00017424,2]
[400897963,1767857446699,-300.0,0.00017425,2]
[400897964,1767857446708,-300.0,0.0001743,2]
[400897966,1767857446717,-300.0,0.00017432,2]
[400897968,1767857446726,-150.0,0.00017446,2]
[400897970,1767857446736,-150.0,0.00017449,2]
[400897972,1767857446745,-300.0,0.00017453,2]
[400897974,1767857446754,-300.0,0.00017455,2]
[400897976,1767857446763,-300.0,0.00017465,2]
[400897978,1767857446773,-300.0,0.00017473,2]
[400897980,1767857446782,-300.0,0.00017475,2]
[400897982,1767857446791,-885.0,0.00017485,2]
[400897984,1767857446800,-150.0,0.00017492,2]
[400897986,1767857446809,-300.0,0.00017495,2]
[400897988,1767857446818,-1000.0,0.00017495,2]
[400897990,1767857446828,-1000.0,0.00017498,2]
[400897992,1767857446837,-1000.0,0.00017498,2]
[400897994,1767857446847,-2000.0,0.000175,2]
[400897996,1767857446856,-1600.92502348,0.000175,2]
[400897998,1767857446865,-1000.0,0.000175,2]
[400898000,1767857446874,-160.59693296,0.000175,2]
[400898002,1767857446883,-3000.0,0.00017502,2]
[400898004,1767857446893,-2520.5636209,0.00017502,2]
[400898006,1767857446902,-476.3156368,0.00017502,2]
[400898008,1767857446912,-987.99755872,0.00017502,2]
[400898010,1767857446921,-3000.0,0.00017502,2]
[400898012,1767857446932,-3000.0,0.00017502,2]
[400898014,1767857446941,-300.0,0.00017518,2]
[400898016,1767857446951,-150.0,0.00017529,2]
[400898018,1767857446960,-300.0,0.00017531,2]
[400898020,1767857446970,-160.43,0.00017532,2]
[400898023,1767857446979,-500.0,0.00017534,2]
[400898026,1767857446988,-1042.30773041,0.00017534,2]
[400898028,1767857446997,-166.04276169,0.00017536,2]
[400898030,1767857447006,-150.0,0.00017538,2]
[400898033,1767857447015,-1000.0,0.0001754,2]
[400898036,1767857447024,-1000.0,0.00017541,2]
[400898039,1767857447035,-5888.0,0.00017553,2]
[400898042,1767857447044,-150.0,0.00017554,2]
[400898045,1767857447053,-885.0,0.00017559,2]
[400898048,1767857447063,-160.43,0.00017562,2]